lending/lending_fUSD_20240723
["ID","MTS","AMOUNT","RATE_DAILY","PERIOD"]
[333026157,1721765443529,-15465.42611923,0.00011105,2]
[333026158,1721765443539,-290.2137731,0.00011105,2]
[333026159,1721765443548,-5758.53444241,0.00011105,2]
[333026160,1721765443558,-5397.51614816,0.00011105,2]
[333026161,1721765443569,-10530.80114964,0.00011105,2]
[333026162,1721765443579,-186.42851713,0.00011105,2]
[333026163,1721765443589,-3078.607379,0.00011105,2]
[333026164,1721765443598,-5320.70599634,0.00011105,2]
[333026165,1721765443607,-2837.89406693,0.00011105,2]
[333026166,1721765443618,-4471.6772674,0.00011105,2]
[333026167,1721765443629,-9259.73193231,0.00011105,2]
[333026168,1721765443639,-3400.41607014,0.00011105,2]
[333026169,1721765443649,-3117.1338451,0.00011105,2]
[333026170,1721765443658,-158.3648367,0.00011105,2]
[333026171,1721765443667,-229.90426883,0.00011105,2]
[333026172,1721765443677,-5479.75289833,0.00011105,2]
[333026173,1721765443686,-1380.31071233,0.00011105,2]
[333026174,1721765443696,-2370.80180432,0.00011105,2]
[333026175,1721765443705,-2726.38763385,0.00011105,2]
[333026176,1721765443714,-2206.59920799,0.00011105,2]
[333026177,1721765443723,-298.29388542,0.00011105,2]
[333026178,1721765443732,-2143.52168912,0.00011105,2]
[333026179,1721765443742,-1274.07752691,0.00011105,2]
[333026180,1721765443982,-155.0,0.00011105,2]
[333026181,1721765443993,-1267.5684176,0.00011105,2]
[333026182,1721765444003,-1500.0,0.00011105,2]
[333026183,1721765444013,-267.02011989,0.00011105,2]
[333026184,1721765444023,-652.83975331,0.00011105,2]
[333026185,1721765444033,-155.00000034,0.00011105,2]
[333026186,1721765444043,-1296.72947417,0.00011105,2]
[333026187,1721765444053,-1073.43313822,0.00011105,2]
[333026188,1721765444062,-3625.42955922,0.00011105,2]
[333026189,1721765444074,-310.0,0.00011105,2]
[333026190,1721765444083,-539.24588103,0.00011105,2]
[333026191,1721765444093,-155.24184597,0.00011105,2]
[333026192,1721765444103,-646.59636029,0.00011105,2]
[333026193,1721765444112,-280.68441597,0.00011105,2]
[333026194,1721765444121,-357.01695236,0.00011105,2]
[333026195,1721765444131,-648.25999008,0.00011105,2]
[333026196,1721765444141,-155.0,0.00011105,2]
[333026197,1721765444150,-484.62726921,0.00011105,2]
[333026198,1721765444160,-204.33708219,0.00011105,2]
[333026199,1721765444170,-1255.76158876,0.00011105,2]
[333026200,1721765444180,-155.37575124,0.00011105,2]
[333026201,1721765444189,-155.0,0.00011105,2]
[333026202,1721765444198,-649.10789177,0.00011105,2]
[333026203,1721765444208,-200.35823596,0.00011105,2]
[333026204,1721765444217,-200.0,0.00011105,2]
[333026205,1721765444226,-508.90745632,0.00011105,2]
[333026206,1721765444237,-493.07204629,0.00011105,2]
[333026207,1721765444246,-210.71985697,0.00011105,2]
[333026208,1721765444255,-600.01830648,0.00011105,2]
[333026209,1721765444264,-320.96788214,0.00011105,2]
[333026210,1721765444275,-531.08782858,0.00011105,2]
[333026211,1721765444284,-414.07403519,0.00011105,2]
[333026212,1721765444294,-531.66473382,0.00011105,2]
[333026213,1721765444303,-155.0,0.00011105,2]
[333026214,1721765444312,-220.52998709,0.00011105,2]
[333026215,1721765444323,-425.81858048,0.00011105,2]
[333026216,1721765444333,-156.2043862,0.00011105,2]
[333026217,1721765444343,-155.0,0.00011105,2]
[333026218,1721765444353,-722.57761402,0.00011105,2]
[333026219,1721765444362,-159.6515169,0.00011105,2]
[333026220,1721765444371,-155.0,0.00011105,2]
[333026221,1721765444381,-959.08617395,0.00011105,2]
[333026222,1721765444390,-155.0,0.00011105,2]
[333026223,1721765444399,-347.26603945,0.00011105,2]
[333026224,1721765444408,-155.0,0.00011105,2]
[333026225,1721765444418,-3066.70512637,0.00011105,2]
[333026226,1721765444427,-729.1936268,0.00011105,2]
[333026227,1721765444437,-155.0,0.00011105,2]
[333026228,1721765444447,-155.0,0.00011105,2]
[333026229,1721765444457,-155.0,0.00011105,2]
[333026230,1721765444466,-367.42834681,0.00011105,2]
[333026231,1721765444476,-155.0,0.00011105,2]
[333026232,1721765444486,-308.92570117,0.00011105,2]
[333026233,1721765444496,-1137.7534592,0.00011105,2]
[333026234,1721765444505,-308.92570117,0.00011105,2]
[333026235,1721765444515,-463.02896679,0.00011105,2]
[333026236,1721765444525,-236.06369741,0.00011105,2]
[333026237,1721765444535,-163.30825188,0.0001114,2]
[333026238,1721765444545,-500.0,0.0001116,2]
[333026239,1721765444556,-155.0,0.00011161,2]
[333026240,1721765444568,-155.0,0.00011161,2]
[333026241,1721765444578,-155.0,0.00011161,2]
[333026242,1721765444587,-155.0,0.00011161,2]
[333026243,1721765444596,-155.0,0.00011161,2]
[333026244,1721765444606,-365.20312364,0.00011161,2]
[333026245,1721765444616,-155.0,0.00011161,2]
[333026246,1721765444626,-158.08830523,0.00011161,2]
[333026247,1721765444635,-155.0,0.00011161,2]
[333026248,1721765444645,-24767.52746557,0.00011186,2]
[333026249,1721765444654,-28091.26787554,0.00011186,2]
[333026250,1721765444664,-25294.2604552,0.00011186,2]
[333026251,1721765444674,-22632.54477607,0.00011186,2]
[333026252,1721765444683,-155.0,0.00011186,2]
[333026253,1721765444692,-155.0,0.00011186,2]
[333026254,1721765444702,-218.65328672,0.00011186,2]
[333026255,1721765444712,-164.18426229,0.00011186,2]
[333026256,1721765444722,-164.20932058,0.00011186,2]
[333026257,1721765444732,-431.97601282,0.00011186,2]
[333026258,1721765444741,-155.0,0.00011186,2]
[333026259,1721765444751,-200.15145871,0.000112,2]
[333026260,1721765444761,-759.57906826,0.00011206,2]
[333026261,1721765444770,-155.0,0.00011206,2]
[333026262,1721765444779,-528.31525612,0.00011206,2]
[333026263,1721765444789,-159.41834752,0.00011206,2]
[333026264,1721765444799,-329.58624283,0.00011206,2]
[333026265,1721765444809,-528.31525612,0.00011206,2]
[333026266,1721765444821,-342.16720055,0.00011206,2]
[333026267,1721765444831,-363.74647436,0.00011206,2]
[333026268,1721765444841,-202.65394581,0.00011206,2]
[333026269,1721765444850,-155.0,0.00011206,2]
[333026270,1721765444859,-270.25397008,0.00011206,2]
[333026271,1721765444869,-466.34498137,0.00011206,2]
[333026272,1721765444879,-254.78853267,0.00011206,2]
[333026273,1721765444890,-520.0,0.00011229,2]
[333026274,1721765444900,-166.66666668,0.00011289,2]
[333026275,1721765444910,-191.70982043,0.00011322,2]
[333026276,1721765444920,-246.68547249,0.00011322,2]
[333026277,1721765444930,-203.17152502,0.00011322,2]
[333026278,1721765444940,-152.0,0.00011335,3]
[333026279,1721765444950,-200.15145871,0.0001135,2]
[333026280,1721765444960,-2185.33767555,0.0001135,2]
[333026281,1721765444970,-367.90136055,0.00011357,2]
[333026282,1721765444980,-587.0,0.00011372,2]
[333026283,1721765444990,-234.89482181,0.00011499,2]
[333026284,1721765445000,-237196.43826161,0.000115,2]
[333026285,1721765445587,-14696.91747197,0.000115,2]
[333026286,1721765445600,-451.88977681,0.000115,2]
[333026287,1721765445617,-39175.25499493,0.000115,2]
[333026288,1721765445629,-8005.5,0.000115,2]
[333026289,1721765445640,-396.11489439,0.000115,2]
[333026290,1721765445651,-791.68781801,0.000115,2]
[333026291,1721765445662,-268.77602007,0.000115,2]
[333026292,1721765445677,-6562.2557,0.000115,2]
[333026300,1721765445946,-835.97661551,9.962e-05,2]
[333026301,1721765445957,-856.2321508,0.000108,3]
[333026302,1721765445969,-643.7678492,0.000108,3]
[333026303,1721765445979,-155.0,0.00011105,2]
[333026304,1721765445989,-155.0,0.00011206,2]
[333026305,1721765445999,-155.0,0.00011206,2]
[333026306,1721765446009,-70670.08359221,0.000115,2]
[333026307,1721765446020,-12006.86003465,0.000115,2]
[333026308,1721765446033,-304.97,0.000115,2]
[333026309,1721765446045,-1742.71683065,0.000115,2]
[333026310,1721765446061,-3399.39625553,0.000115,2]
[333026311,1721765446074,-882.1746128,0.000115,2]
[333026312,1721765446085,-364677.8731307,0.000115,2]
[333026313,1721765446096,-1265.18101471,0.000115,2]
[333026314,1721765446118,-7856.27370497,0.000115,2]
[333026315,1721765446130,-622.22852932,0.000115,2]
[333026316,1721765446141,-83524.18635659,0.000115,2]
[333026317,1721765446151,-766084.42581976,0.000115,2]
[333026318,1721765446162,-629.27928532,0.000115,2]
[333026319,1721765446174,-429.75631163,0.000115,2]
[333026320,1721765446186,-408.48752001,0.000115,2]
[333026321,1721765446208,-2196.9196819,0.000115,2]
[333026322,1721765446220,-450.59466083,0.000115,2]
[333026323,1721765446232,-1184.13996,0.000115,2]
[333026324,1721765446247,-584.89145094,0.000115,2]
[333026325,1721765446258,-1737.63482757,0.000115,2]
[333026326,1721765446269,-471655.38643377,0.000115,2]
[333026327,1721765446282,-234869.7369746,0.000115,2]
[333026329,1721765446754,-439.48896357,0.000115,2]
[333026331,1721765446766,-1532.24105838,0.000115,2]
[333026333,1721765446784,-281.0,0.000115,2]
[333026343,1721765928442,793.93,8.219e-05,2]
[333026349,1721766205877,-156.74281172,9.52e-05,2]
[333026350,1721766205898,-154.90969968,9.759e-05,2]
[333026351,1721766205918,-166.66666668,9.759e-05,2]
[333026352,1721766205938,-166.66666666,9.768e-05,2]
[333026353,1721766205958,-300.0,9.777e-05,2]
[333026354,1721766205982,-166.66666666,9.777e-05,2]
[333026355,1721766206004,-16550.0,9.778e-05,2]
[333026356,1721766206026,-169.56146874,9.862e-05,2]
[333026357,1721766206047,-2210.7896,9.862e-05,2]
[333026358,1721766227974,600.0,8.219e-05,2]
[333026360,1721766247455,291.0324454,8.219e-05,2]
[333026361,1721766249942,797.06604498,8.219e-05,2]
[333026362,1721766404154,1000.0,9.87e-05,2]
[333026363,1721766470129,776.85,8.219e-05,2]
[333026371,1721766529237,250.0,9.822e-05,2]
[333026378,1721766603210,150.0,9.822e-05,2]
[333026379,1721766603397,150.0,9.822e-05,2]
[333026380,1721766603613,150.0,9.822e-05,2]
[333026381,1721766603830,150.0,9.822e-05,2]
[333026382,1721766604047,150.0,9.822e-05,2]
[333026383,1721766604262,150.0,9.822e-05,2]
[333026384,1721766604484,150.0,9.822e-05,2]
[333026385,1721766604702,150.0,9.822e-05,2]
[333026386,1721766605008,150.0,9.822e-05,2]
[333026387,1721766605695,150.0,9.822e-05,2]
[333026388,1721766605898,150.0,9.822e-05,2]
[333026389,1721766606121,150.0,9.822e-05,2]
[333026390,1721766606483,150.0,9.822e-05,2]
[333026391,1721766606550,150.0,9.822e-05,2]
[333026392,1721766606733,150.0,9.822e-05,2]
[333026393,1721766606983,150.0,9.822e-05,2]
[333026394,1721766607190,150.0,9.822e-05,2]
[333026395,1721766607377,150.0,9.822e-05,2]
[333026396,1721766607623,150.0,9.822e-05,2]
[333026397,1721766607814,150.0,9.822e-05,2]
[333026398,1721766608020,150.0,9.822e-05,2]
[333026399,1721766608223,150.0,9.822e-05,2]
[333026400,1721766608419,150.0,9.822e-05,2]
[333026401,1721766608755,150.0,9.822e-05,2]
[333026402,1721766608864,150.0,9.822e-05,2]
[333026403,1721766609074,150.0,9.822e-05,2]
[333026404,1721766609324,150.0,9.822e-05,2]
[333026405,1721766609541,150.0,9.822e-05,2]
[333026406,1721766609786,150.0,9.822e-05,2]
[333026407,1721766609980,150.0,9.822e-05,2]
[333026408,1721766610163,150.0,9.822e-05,2]
[333026409,1721766610369,150.0,9.822e-05,2]
[333026410,1721766610546,150.0,9.822e-05,2]
[333026411,1721766610743,188.17963668,9.822e-05,2]
[333026412,1721766620008,712.0,9.833e-05,2]
[333026429,1721766632068,-163.30825189,9.878e-05,2]
[333026430,1721766632078,-150.0,9.961e-05,2]
[333026431,1721766632088,-288.0,9.962e-05,2]
[333026432,1721766632097,-704.22909346,9.984e-05,2]
[333026433,1721766632109,-359.16532702,9.984e-05,2]
[333026434,1721766632178,-154.83557952,9.984e-05,2]
[333026435,1721766632188,-310.31806039,0.0001,2]
[333026436,1721766632197,-300.29482751,0.0001,2]
[333026437,1721766632206,-210.71985697,0.0001,2]
[333026438,1721766632216,-162.16934985,0.00010001,2]
[333026439,1721766632226,-42.51238003,0.00010066,2]
[333026440,1721766632238,-250.29761997,0.00010066,2]
[333026441,1721766632248,-1641.0,0.000103,5]
[333026442,1721766632257,-300.0,0.000104,3]
[333026443,1721766632266,-776.85,0.00010467,2]
[333026444,1721766632276,-320.98158003,0.000105,3]
[333026445,1721766632286,-379.01841997,0.000105,3]
[333026446,1721766632295,-156.02826447,0.00010531,2]
[333026448,1721766632304,-1000.0,0.000106,3]
[333026450,1721766632316,-154.90969968,0.00010647,2]
[333026451,1721766632324,-1400.0,0.000107,3]
[333026453,1721766632334,-152.16019047,0.00010727,2]
[333026455,1721766632343,-17831.26682541,0.000108,2]
[333026458,1721766632355,-4051.46930057,0.000108,2]
[333026461,1721766632366,-2027.83545978,0.000108,2]
[333026473,1721766637996,-6755.01184684,0.000108,2]
[333026474,1721766638054,-965.47893929,0.000108,2]
[333026475,1721766638067,-2388.94041669,0.000108,2]
[333026476,1721766638079,-464.58898707,0.000108,2]
[333026477,1721766638090,-638.89389986,0.000108,2]
[333026478,1721766638111,-2.41332449,0.000108,2]
[333026479,1721766638121,-1398.7850491,0.000108,2]
[333026480,1721766638132,-7095.9221509,0.000108,2]
[333026481,1721766638142,-1800.0,0.000108,3]
[333026482,1721766638152,-7360.33951045,0.0001088,2]
[333026483,1721766638164,-2222.86975057,0.0001088,2]
[333026484,1721766638189,-415.08101052,0.0001088,2]
[333026485,1721766638227,-19177.27197511,0.0001088,2]
[333026496,1721766640131,-10229.96736025,0.0001088,2]
[333026497,1721766640142,-1111.78170596,0.0001088,2]
[333026498,1721766640154,-2766.82959944,0.0001088,2]
[333026499,1721766640164,-593.02327677,0.0001088,2]
[333026500,1721766640184,-7918.0401665,0.0001088,2]
[333026501,1721766640195,-15738.65643401,0.0001088,2]
[333026502,1721766640206,-3455.58653241,0.0001088,2]
[333026503,1721766640217,-647.526547,0.0001088,2]
[333026504,1721766640229,-739.70005,0.0001088,2]
[333026505,1721766640244,-2936.09948492,0.0001088,2]
[333026506,1721766640255,-415.08953968,0.0001088,2]
[333026507,1721766640278,-5461.18169945,0.0001088,2]
[333026508,1721766640328,-5188.83089003,0.0001088,2]
[333026509,1721766640340,-10066.03213401,0.0001088,2]
[333026510,1721766640351,-5198.16634652,0.0001088,2]
[333026511,1721766640362,-14509.01639122,0.0001088,2]
[333026512,1721766640374,-11129.60899707,0.0001088,2]
[333026513,1721766640385,-3333.99104239,0.0001088,2]
[333026517,1721766642998,-10587.14206581,0.0001088,2]
[333026518,1721766643010,-920.90870032,0.0001088,2]
[333026519,1721766643021,-118052.48760997,0.0001088,2]
[333026520,1721766643032,-276.03969957,0.0001088,2]
[333026521,1721766643117,-36512.47496338,0.0001088,2]
[333026522,1721766643128,-569.73,0.0001088,2]
[333026523,1721766643139,-35384.3295801,0.0001088,2]
[333026524,1721766643151,-50436.83814242,0.0001088,2]
[333026525,1721766643178,-2847.59268996,0.0001088,2]
[333026526,1721766643241,-17808.97431362,0.0001088,2]
[333026527,1721766643252,-11837.3968,0.0001088,2]
[333026528,1721766643262,-926.1023414,0.0001088,2]
[333026529,1721766643273,-400.0,0.0001088,2]
[333026534,1721766646035,-300.0,0.000104,3]
[333026535,1721766646045,-580.21327524,0.0001088,2]
[333026536,1721766646056,-1142.59442236,0.0001088,2]
[333026537,1721766646067,-1752.76552641,0.0001088,2]
[333026538,1721766646080,-1211.81700269,0.0001088,2]
[333026539,1721766646090,-371.9075,0.0001088,2]
[333026540,1721766646105,-575.55197003,0.0001088,2]
[333026541,1721766646116,-354.37716682,0.0001088,2]
[333026542,1721766646127,-4748.5911724,0.0001088,2]
[333026543,1721766646175,-2247.44095932,0.0001088,2]
[333026544,1721766646186,-504.6728537,0.0001088,2]
[333026545,1721766646197,-1407.31275459,0.0001088,2]
[333026546,1721766646208,-2928.42734154,0.0001088,2]
[333026547,1721766646221,-11075.30275092,0.0001088,2]
[333026548,1721766646237,-784.08495585,0.0001088,2]
[333026550,1721766646474,-877.554818,0.0001088,2]
[333026555,1721766647151,-2984.8826428,0.0001088,2]
[333026556,1721766647162,-414.36,0.0001088,2]
[333026557,1721766647177,-32540.68456682,0.0001088,2]
[333026558,1721766647188,-18666.72537751,0.0001088,2]
[333026559,1721766647200,-420.62036438,0.0001088,2]
[333026560,1721766647211,-3298.64723075,0.0001088,2]
[333026561,1721766647223,-506.04810695,0.0001088,2]
[333026562,1721766647234,-4823.36786804,0.0001088,2]
[333026563,1721766669458,168.26,8.219e-05,2]
[333026573,1721767050464,740.11,8.219e-05,2]
[333026575,1721767390251,168.26,8.219e-05,2]
[333026576,1721767573706,703.1,8.219e-05,2]
[333026577,1721767631255,-154.90969968,9.638e-05,2]
[333026578,1721767631276,-154.90969968,9.649e-05,2]
[333026579,1721767631297,-1000.0,9.66e-05,2]
[333026580,1721767631316,-152.16019047,9.662e-05,2]
[333026583,1721767754338,250.0,9.647e-05,2]
[333026599,1721767832231,-154.90969968,9.671e-05,2]
[333026600,1721767832240,-671.38897698,9.675e-05,2]
[333026601,1721767832507,-716.18874666,9.675e-05,2]
[333026602,1721767832537,-2682.92227636,9.675e-05,2]
[333026603,1721767832547,-152.16019047,9.675e-05,2]
[333026604,1721767832556,-159.11,9.797e-05,2]
[333026605,1721767832567,-150.0,9.808e-05,2]
[333026606,1721767832577,-154.90969968,9.836e-05,2]
[333026607,1721767832587,-159.11,9.846e-05,2]
[333026608,1721767832597,-300.29482751,0.0001,2]
[333026609,1721767832607,-210.71985697,0.0001,2]
[333026610,1721767832616,-351.12,0.0001,2]
[333026611,1721767832626,-150.0,0.00010247,2]
[333026612,1721767832636,-57.87934474,0.00010282,2]
[333026613,1721767832653,-101.75148904,0.00010282,2]
[333026614,1721767832663,-182.05851106,0.000104,3]
[333026615,1721767832697,-117.94148894,0.000104,3]
[333026616,1721767832706,-152.16019047,0.00010442,2]
[333026617,1721767832717,-703.1,0.00010462,2]
[333026618,1721767832726,-700.0,0.000105,3]
[333026619,1721767832736,-154.45690702,0.00010532,2]
[333026620,1721767832746,-150.77350799,0.00010599,2]
[333026621,1721767832755,-1100.0,0.000106,3]
[333026622,1721767832765,-150.58930985,0.00010634,2]
[333026623,1721767832774,-2770.97859573,0.00010663,2]
[333026624,1721767832788,-619.14994573,0.00010663,2]
[333026625,1721767832799,-7920.87145854,0.00010663,2]
[333026626,1721767832808,-156.74281173,0.00010681,2]
[333026627,1721767832818,-1500.0,0.000107,3]
[333026628,1721767832827,-152.16019047,0.00010701,2]
[333026629,1721767832838,-151.46993681,0.00010733,2]
[333026630,1721767832849,-150.0,0.00010733,2]
[333026631,1721767832858,-16438.24098045,0.0001077,2]
[333026632,1721767832870,-641.43342479,0.0001077,2]
[333026633,1721767832890,-412.61335126,0.0001077,2]
[333026634,1721767832902,-3818.02841029,0.0001077,2]
[333026635,1721767832912,-2113.37384,0.0001077,2]
[333026636,1721767832921,-29833.1433,0.0001078,2]
[333026637,1721767832931,-330.4474,0.0001078,2]
[333026638,1721767832941,-212.8723,0.0001078,2]
[333026639,1721767832952,-172.6576321,0.0001078,2]
[333026640,1721767832961,-8573.25,0.0001078,2]
[333026641,1721767832971,-181.54289042,0.000108,2]
[333026642,1721767832981,-150.11359404,0.000108,2]
[333026643,1721767832991,-1900.0,0.000108,3]
[333026644,1721767833004,-1000.0,0.00010867,2]
[333026645,1721767833014,-18858.20100395,0.0001088,2]
[333026646,1721767833040,-2564.27809117,0.0001088,2]
[333026647,1721767833053,-604.923475,0.0001088,2]
[333026649,1721767833095,-15211.44816338,0.0001088,2]
[333026650,1721767833107,-470.74147464,0.0001088,2]
[333026651,1721767833118,-2577.45389975,0.0001088,2]
[333026691,1721767838274,-1147.12521998,0.0001088,2]
[333026692,1721767838286,-649.25549999,0.0001088,2]
[333026693,1721767838491,-19854.99119661,0.0001088,2]
[333026694,1721767838503,-9420.28367297,0.0001088,2]
[333026737,1721767840306,-3757.42342184,0.0001088,2]
[333026738,1721767840619,-4864.05036268,0.0001088,2]
[333026739,1721767840699,-1400.50562819,0.0001088,2]
[333026740,1721767840710,-1643.605016,0.0001088,2]
[333026780,1721767843331,-8664.66198161,0.0001088,2]
[333026781,1721767843342,-9858.86818663,0.0001088,2]
[333026782,1721767843388,-6812.47248928,0.0001088,2]
[333026783,1721767843399,-380.80188952,0.0001088,2]
[333026784,1721767843447,-15392.39694035,0.0001088,2]
[333026785,1721767843459,-2992.66511614,0.0001088,2]
[333026786,1721767843470,-500.0,0.0001088,2]
[333026787,1721767843517,-705.59991999,0.0001088,2]
[333026788,1721767843575,-295.4355325,0.0001088,2]
[333026789,1721767843687,-379.91876333,0.0001088,2]
[333026821,1721767846193,-1449.45668,0.00010551,2]
[333026823,1721767846203,-1054.69005226,0.0001088,2]
[333026826,1721767846214,-861.89995876,0.0001088,2]
[333026828,1721767846226,-15031.09902767,0.0001088,2]
[333026832,1721767846253,-6584.9367,0.0001088,2]
[333026834,1721767846264,-1185.57,0.0001088,2]
[333026836,1721767846274,-328.12976,0.0001088,2]
[333026838,1721767846285,-347.83,0.0001088,2]
[333026840,1721767846297,-1222.58142477,0.0001088,2]
[333026868,1721767846782,-1272.90305297,0.0001088,2]
[333026870,1721767846794,-11253.93577698,0.0001088,2]
[333026872,1721767846805,-380.34838437,0.0001088,2]
[333026874,1721767846815,-1753.85498398,0.0001088,2]
[333026876,1721767846826,-578.12371714,0.0001088,2]
[333026878,1721767846837,-1754.97,0.0001088,2]
[333026880,1721767846847,-1530.01147596,0.0001088,2]
[333026882,1721767846858,-2179.41794027,0.0001088,2]
[333026884,1721767846869,-948.90000057,0.0001088,2]
[333026887,1721767846880,-1053.96822553,0.0001088,2]
[333026889,1721767846891,-404.48230813,0.0001088,2]
[333026891,1721767846902,-2654.94895016,0.0001088,2]
[333026893,1721767846913,-1840.07643917,0.0001088,2]
[333026895,1721767846924,-132140.80628012,0.0001088,2]
[333026897,1721767846936,-689.65038616,0.0001088,2]
[333026900,1721767846949,-3594.95279037,0.0001088,2]
[333026902,1721767846959,-6775.73848486,0.0001088,2]
[333026904,1721767846970,-1400.55359634,0.0001088,2]
[333026990,1721768222582,675.59,8.219e-05,2]
[333026991,1721768241356,152.16019047,9.656e-05,2]
[333026994,1721768676357,205.0,9.67e-05,2]
[333026995,1721768797517,240.2702197,8.219e-05,2]
[333026996,1721768797543,401.5397803,8.219e-05,2]
[333027009,1721769031506,-307.81985419,9.798e-05,2]
[333027010,1721769031563,-692.18014581,9.798e-05,2]
[333027011,1721769031575,-250.0,9.802e-05,2]
[333027012,1721769031586,-507.81985419,9.843e-05,2]
[333027013,1721769031621,-531.77659901,9.843e-05,2]
[333027014,1721769031633,-2523.1635468,9.843e-05,2]
[333027015,1721769031642,-201.95,9.846e-05,2]
[333027016,1721769031653,-550.12,9.863e-05,2]
[333027017,1721769031663,-420.03,9.973e-05,2]
[333027018,1721769031672,-150.77350799,0.00010143,2]
[333027019,1721769031682,-529.74,0.00010247,2]
[333027020,1721769031691,-355.69,0.00010247,2]
[333027021,1721769031701,-150.0,0.00010247,2]
[333027022,1721769031711,-160.45083347,0.00010254,2]
[333027023,1721769031721,-1500.41474252,0.000103,5]
[333027024,1721769031733,-5848.58525748,0.000103,5]
[333027025,1721769031743,-455.45,0.000103,2]
[333027026,1721769031753,-152.16019047,0.00010327,2]
[333027027,1721769031763,-641.81,0.00010466,2]
[333027028,1721769031773,-179.94032255,0.00010467,2]
[333027029,1721769031783,-3348.92153664,0.000107,2]
[333027030,1721769031807,-1421.0333,0.000107,2]
[333027031,1721769031818,-1699.67601483,0.000107,2]
[333027032,1721769031839,-328.21590955,0.000107,2]
[333027034,1721769031851,-3913.55995196,0.000107,2]
[333027053,1721769037486,-1126068.29437492,0.000107,2]
[333027054,1721769037551,-4576.2931165,0.000107,2]
[333027055,1721769037565,-1992.92348915,0.000107,2]
[333027072,1721769039566,-199.78851598,9.962e-05,2]
[333027073,1721769039576,-142313.60211946,0.000107,2]
[333027074,1721769039587,-28158.81100673,0.000107,2]
[333027075,1721769039598,-4623.49313151,0.000107,2]
[333027076,1721769039655,-68108.04000002,0.000107,2]
[333027077,1721769039774,-2640.33644,0.000107,2]
[333027078,1721769039785,-298.36191093,0.000107,2]
[333027079,1721769039835,-407.706,0.000107,2]
[333027080,1721769039898,-1720.39690758,0.000107,2]
[333027092,1721769042403,-326.99393954,0.000107,2]
[333027094,1721769042416,-682.23,0.000107,2]
[333027097,1721769042471,-250.48040969,0.000107,2]
[333027098,1721769042529,-386.68142865,0.000107,2]
[333027099,1721769042541,-803.1817991,0.000107,2]
[333027100,1721769042554,-7490.68946234,0.000107,2]
[333027103,1721769042886,-411.94805953,0.000107,2]
[333027104,1721769042911,-699.5899999,0.000107,2]
[333027105,1721769042922,-1192.9975616,0.000107,2]
[333027107,1721769042934,-402.1328551,0.000107,2]
[333027108,1721769042945,-334.37839027,0.000107,2]
[333027109,1721769042957,-329.65,0.000107,2]
[333027111,1721769045432,-260.301126,0.000107,2]
[333027113,1721769045566,-7494.77813139,0.000107,2]
[333027115,1721769045579,-5157.30162711,0.000107,2]
[333027116,1721769045588,-155.39218713,0.00010733,2]
[333027117,1721769045597,-220.84,0.00010767,2]
[333027118,1721769045606,-1761.14486,0.0001077,2]
[333027119,1721769045614,-901.2695,0.0001078,2]
[333027120,1721769045622,-500.352,0.0001078,2]
[333027121,1721769045631,-959.20007468,0.0001078,2]
[333027122,1721769045640,-7099.49975108,0.000108,2]
[333027123,1721769045652,-5249.05671973,0.000108,2]
[333027124,1721769045664,-6188.57226742,0.000108,2]
[333027125,1721769045675,-2813.02120131,0.000108,2]
[333027126,1721769045686,-264.30000001,0.000108,2]
[333027127,1721769045697,-546.006,0.000108,2]
[333027128,1721769045707,-665.03216072,0.000108,2]
[333027129,1721769045780,-948.66014233,0.000108,2]
[333028001,1721769063965,1977.0,8.219e-05,2]
[333028002,1721769063993,6263.87357373,8.219e-05,2]
[333028003,1721769064017,9441.15555105,8.219e-05,2]
[333028004,1721769320732,558.84444895,8.219e-05,2]
[333028005,1721769320753,77.86555105,8.219e-05,2]
[333028008,1721769649594,154.83,0.000136,31]
[333028009,1721769649651,154.83,0.000136,31]
[333028010,1721769649724,154.83,0.000136,31]
[333028011,1721769649795,154.83,0.000136,31]
[333028012,1721769649827,154.83,0.000136,31]
[333028013,1721769649892,154.83,0.000136,31]
[333028014,1721769649955,154.83,0.000136,31]